lending/lending_fUSD_20250429
["ID","MTS","AMOUNT","RATE_DAILY","PERIOD"]
[359306554,1745903135791,470.0,0.00038356,30]
[359306555,1745903137236,470.0,0.00038356,30]
[359306556,1745903138990,470.0,0.00038356,30]
[359306557,1745903139050,1280.88,0.00038356,30]
[359306558,1745903141037,1028.58,0.00038356,30]
[359306559,1745903141162,262.2661985,0.00038356,30]
[359306560,1745903142286,470.0,0.00038356,30]
[359306561,1745903142546,1401.4,0.00038356,30]
[359306562,1745903142607,500.0,0.00038356,30]
[359306563,1745903143578,470.0,0.00038356,30]
[359306564,1745903143920,470.0,0.00038356,30]
[359306565,1745903144496,470.0,0.00038356,30]
[359306566,1745903145642,470.0,0.00038356,30]
[359306567,1745903146245,470.0,0.00038356,30]
[359306568,1745903149419,1021.8,0.00038356,30]
[359306569,1745903151041,470.0,0.00038356,30]
[359306570,1745903151304,470.0,0.00038356,30]
[359306571,1745903152120,470.0,0.00038356,30]
[359306572,1745903152566,470.0,0.00038356,30]
[359306573,1745903153466,470.0,0.00038356,30]
[359306574,1745903155362,500.0,0.00038247,120]
[359306575,1745903157750,599.04,0.00038356,30]
[359306576,1745903158666,235.40190622,0.00038356,30]
[359306577,1745903158727,500.0,0.00038247,120]
[359306578,1745903158779,506.57,0.00038356,30]
[359306579,1745903158889,503.0,0.00038247,120]
[359306580,1745903159497,470.0,0.00038356,30]
[359306581,1745903160172,645.98,0.00038356,30]
[359306582,1745903162138,500.0,0.00038247,120]
[359306583,1745903162192,302.0,0.00038356,30]
[359306584,1745903162373,500.0,0.00038247,120]
[359306585,1745903162633,500.0,0.00038247,120]
[359306586,1745903162890,605.0,0.00038247,120]
[359306587,1745903163030,204.14,0.000383,30]
[359306588,1745903163270,470.0,0.00038356,30]
[359306589,1745903163680,470.0,0.00038356,30]
[359306590,1745903166994,470.0,0.00038356,30]
[359306591,1745903167178,1016.33,0.00038356,30]
[359306592,1745903168288,470.0,0.00038356,30]
[359306593,1745903168355,470.0,0.00038356,30]
[359306594,1745903168961,470.0,0.00038356,30]
[359306595,1745903170739,470.0,0.00038356,30]
[359306596,1745903171391,470.0,0.00038356,30]
[359306597,1745903172724,522.06550163,0.00038356,30]
[359306598,1745903173822,150.0,0.00038356,30]
[359306599,1745903174492,632.77,0.00038356,30]
[359306600,1745903175604,470.0,0.00038356,30]
[359306601,1745903177055,3045.72,0.00038356,30]
[359306602,1745903177145,470.0,0.00038356,30]
[359306603,1745903180199,470.0,0.00038356,30]
[359306604,1745903180873,470.0,0.00038356,30]
[359306605,1745903182082,470.0,0.00038356,30]
[359306606,1745903182140,715.47,0.00038356,30]
[359306607,1745903182653,560.98,0.00038356,30]
[359306608,1745903185135,470.0,0.00038356,30]
[359306609,1745903185729,500.0,0.00038356,120]
[359306610,1745903188464,470.0,0.00038356,30]
[359306611,1745903190373,470.0,0.00038356,30]
[359306612,1745903190948,21255.66,0.00038356,30]
[359306613,1745903191873,470.0,0.00038356,30]
[359306614,1745903191948,470.0,0.00038356,30]
[359306615,1745903192591,470.0,0.00038356,30]
[359306616,1745903196457,470.0,0.00038356,30]
[359306617,1745903199365,470.0,0.00038356,30]
[359306618,1745903200695,484.58,0.00038356,30]
[359306619,1745903201133,648.69,0.00038356,30]
[359306620,1745903202287,470.0,0.00038356,30]
[359306621,1745903205889,470.0,0.00038356,30]
[359306622,1745903206019,470.0,0.00038356,30]
[359306623,1745903206215,596.52,0.00038356,30]
[359306624,1745903207095,470.0,0.00038356,30]
[359306625,1745903208946,470.0,0.00038356,30]
[359306626,1745903212230,1648.78,0.00038356,30]
[359306627,1745903213015,470.0,0.00038356,30]
[359306628,1745903215093,470.0,0.00038356,30]
[359306629,1745903217277,470.0,0.00038356,30]
[359306630,1745903217993,470.0,0.00038356,30]
[359306631,1745903220083,1411.65,0.00038356,30]
[359306632,1745903220787,470.0,0.00038356,30]
[359306633,1745903222928,470.0,0.00038356,30]
[359306634,1745903226444,470.0,0.00038356,30]
[359306635,1745903227241,470.0,0.00038356,30]
[359306636,1745903227610,1074.58,0.00038356,30]
[359306637,1745903228143,470.0,0.00038356,30]
[359306638,1745903228588,470.0,0.00038356,30]
[359306639,1745903236138,821.71,0.00038356,30]
[359306640,1745903236924,470.0,0.00038356,30]
[359306641,1745903237165,4360.91,0.00038356,30]
[359306642,1745903244015,876.68,0.00038356,30]
[359306643,1745903244248,470.0,0.00038356,30]
[359306644,1745903249524,1180.02,0.00038356,30]
[359306645,1745903252612,470.0,0.00038356,30]
[359306646,1745903253189,675.81,0.00038356,30]
[359306647,1745903253542,470.0,0.00038356,30]
[359306648,1745903253611,470.0,0.00038356,30]
[359306650,1745903255154,470.0,0.00038356,30]
[359306651,1745903256045,-150.0,0.000194,2]
[359306652,1745903256068,-200.0,0.000198,2]
[359306653,1745903260577,470.0,0.00038356,30]
[359306654,1745903261077,470.0,0.00038356,30]
[359306657,1745903267355,470.0,0.00038356,30]
[359306658,1745903269168,470.0,0.00038356,30]
[359306659,1745903273443,470.0,0.00038356,30]
[359306660,1745903274330,470.0,0.00038356,30]
[359306661,1745903279262,470.0,0.00038356,30]
[359306662,1745903282436,470.0,0.00038356,30]
[359306663,1745903283475,470.0,0.00038356,30]
[359306664,1745903284668,483.53,0.00038356,30]
[359306665,1745903286478,470.0,0.00038356,30]
[359306666,1745903290200,470.0,0.00038356,30]
[359306667,1745903291254,470.0,0.00038356,30]
[359306668,1745903293394,470.0,0.00038356,30]
[359306669,1745903293474,470.0,0.00038356,30]
[359306670,1745903295351,1661.62,0.00038356,30]
[359306671,1745903297944,467.83283,0.0003822,63]
[359306672,1745903298355,499.44,0.00038356,30]
[359306673,1745903298750,470.0,0.00038356,30]
[359306674,1745903300644,471.2,0.00038356,30]
[359306675,1745903303205,489.81,0.00038356,30]
[359306676,1745903303624,470.0,0.00038356,30]
[359306677,1745903305171,760.66,0.00038356,30]
[359306678,1745903307033,564.56,0.00038356,30]
[359306679,1745903309274,470.0,0.00038356,30]
[359306681,1745903314754,470.0,0.00038356,30]
[359306682,1745903317630,470.0,0.00038356,30]
[359306683,1745903319996,505.4,0.00038356,30]
[359306684,1745903322210,470.0,0.00038356,30]
[359306685,1745903322409,843.88,0.00038356,30]
[359306686,1745903322528,470.0,0.00038356,30]
[359306687,1745903324103,1348.0,0.00038356,30]
[359306688,1745903327840,675.34,0.00038356,30]
[359306689,1745903330208,470.0,0.00038356,30]
[359306690,1745903332524,470.0,0.00038356,30]
[359306691,1745903332745,470.0,0.00038356,30]
[359306695,1745903333805,470.0,0.00038356,30]
[359306696,1745903335957,470.0,0.00038356,30]
[359306697,1745903336710,772.38,0.00038356,30]
[359306698,1745903336815,470.0,0.00038356,30]
[359306699,1745903339170,630.33,0.00038356,30]
[359306700,1745903340567,573.48,0.00038356,30]
[359306701,1745903341484,470.0,0.00038356,30]
[359306702,1745903342071,470.0,0.00038356,30]
[359306703,1745903349430,605.26,0.00038356,30]
[359306704,1745903349511,202.1539452,0.00038356,30]
[359306705,1745903350098,770.15,0.00038356,30]
[359306706,1745903352296,482.01,0.00038356,30]
[359306707,1745903352666,500.0,0.00038356,30]
[359306708,1745903353057,470.0,0.00038356,30]
[359306709,1745903355052,150.0,0.00038356,30]
[359306710,1745903356734,150.0,0.00038356,30]
[359306711,1745903357243,471.75,0.00038356,30]
[359306712,1745903358329,470.0,0.00038356,30]
[359306713,1745903358384,795.3,0.00038356,30]
[359306714,1745903359439,1029.59,0.00038356,30]
[359306715,1745903365411,153.78349864,0.00038356,30]
[359306716,1745903366444,155.96935843,0.00038356,30]
[359306717,1745903367459,155.92517657,0.00038356,30]
[359306718,1745903367834,539.44,0.00038356,30]
[359306719,1745903369525,150.0,0.00038356,30]
[359306720,1745903374177,413.0,0.00033226,30]
[359306721,1745903374500,413.0,0.00034808,30]
[359306722,1745903374809,413.0,0.0003639,30]
[359306723,1745903375524,413.0,0.00037973,30]
[359306724,1745903375934,470.0,0.00038356,30]
[359306725,1745903376169,470.0,0.00038356,30]
[359306726,1745903376224,470.0,0.00038356,30]
[359306727,1745903376655,413.0,0.00037213,30]
[359306728,1745903376967,413.0,0.00035884,30]
[359306729,1745903377282,413.0,0.00034555,30]
[359306730,1745903377674,425.0,0.00033226,30]
[359306731,1745903379641,470.0,0.00038356,30]
[359306732,1745903379723,470.0,0.00038356,30]
[359306733,1745903379976,516.53,0.00038356,30]
[359306734,1745903383849,478.11,0.00038356,30]
[359306735,1745903385886,470.0,0.00038356,30]
[359306736,1745903388147,633.01,0.00038356,30]
[359306737,1745903392003,1342.59,0.00038356,30]
[359306738,1745903394895,299.34,0.00038356,30]
[359306739,1745903395053,1343.01,0.00038356,30]
[359306740,1745903396337,470.0,0.00038356,30]
[359306741,1745903403520,470.0,0.00038356,30]
[359306742,1745903405290,183.36013366,0.00038356,30]
[359306743,1745903405831,470.0,0.00038356,30]
[359306744,1745903405948,470.0,0.00038356,30]
[359306745,1745903409757,583.42,0.00038356,30]
[359306746,1745903410586,738.75,0.00038356,30]
[359306747,1745903411272,470.0,0.00038356,30]
[359306748,1745903412720,470.0,0.00038356,30]
[359306749,1745903412819,582.88,0.00038356,30]
[359306750,1745903413399,470.0,0.00038356,30]
[359306751,1745903413862,517.0,0.00038356,30]
[359306752,1745903414916,470.0,0.00038356,30]
[359306753,1745903417000,470.0,0.00038356,30]
[359306754,1745903417891,470.0,0.00038356,30]
[359306755,1745903418629,973.98,0.00038356,30]
[359306756,1745903419104,470.0,0.00038356,30]
[359306757,1745903422577,261.1,0.00038,30]
[359306758,1745903422989,150.0,0.00038356,30]
[359306759,1745903423878,470.0,0.00038356,30]
[359306760,1745903424509,150.0,0.00038356,30]
[359306761,1745903425397,470.0,0.00038356,30]
[359306762,1745903426796,2918.82,0.00038356,30]
[359306763,1745903427155,150.0,0.00038356,30]
[359306764,1745903429916,842.19,0.00038356,30]
[359306765,1745903431805,470.0,0.00038356,30]
[359306768,1745903432214,-150.0,0.000194,2]
[359306769,1745903432224,-150.0,0.000194,2]
[359306770,1745903432235,-200.0,0.00020439,2]
[359306771,1745903432244,-200.0,0.00020678,2]
[359306772,1745903432255,-350.0,0.00021,2]
[359306773,1745903432265,-200.0,0.0002134,2]
[359306774,1745903432274,-200.0,0.0002222,2]
[359306775,1745903432283,-200.0,0.0002222,2]
[359306776,1745903432293,-1005.40026375,0.00022299,2]
[359306777,1745903432326,-194.59973625,0.00022299,2]
[359306778,1745903432335,-300.0,0.00022299,2]
[359306779,1745903432345,-300.0,0.00022299,2]
[359306780,1745903432358,-95021.03370872,0.000223,2]
[359306781,1745903432367,-400.0,0.00023,2]
[359306782,1745903432377,-5204.74210957,0.00023804,2]
[359306783,1745903432386,-500.0,0.000239,2]
[359306784,1745903432396,-420.0,0.00024224,2]
[359306785,1745903432405,-300.0,0.00024224,2]
[359306786,1745903432415,-1200.0,0.00024337,2]
[359306787,1745903432425,-1440.0,0.000247,5]
[359306788,1745903432437,-1909.34460702,0.000249,5]
[359306789,1745903432447,-450.0,0.00025,2]
[359306790,1745903432456,-977.34,0.00025308,2]
[359306791,1745903432466,-84677.41808349,0.000255,2]
[359306792,1745903432475,-268.07766286,0.000255,2]
[359306793,1745903432486,-503.43068466,0.000255,2]
[359306795,1745903432496,-500.0,0.000255,2]
[359306797,1745903432506,-579.77007519,0.000255,2]
[359306799,1745903432516,-1909.34460702,0.00025624,6]
[359306801,1745903432526,-151.0,0.00025833,2]
[359306803,1745903432536,-207.4,0.00025833,2]
[359306805,1745903432546,-225.65244251,0.000262,2]
[359306807,1745903432556,-432.0,0.00026316,2]
[359306809,1745903432565,-1909.34460702,0.00026348,6]
[359306811,1745903432576,-151.55183404,0.00026381,2]
[359306813,1745903432585,-200.0,0.00026684,2]
[359306815,1745903432594,-1083.51,0.00026838,2]
[359306817,1745903432604,-1909.34460702,0.00027072,7]
[359306819,1745903432613,-4472.56,0.0002716,2]
[359306821,1745903432623,-215.0738,0.00027202,2]
[359306823,1745903432636,-152.44,0.00027397,2]
[359306825,1745903432645,-977.34,0.00027572,2]
[359306827,1745903432654,-1909.34460702,0.00027797,7]
[359306829,1745903432664,-152.44,0.0002831,2]
[359306832,1745903432673,-1909.34460702,0.00028521,8]
[359306835,1745903432682,-223.0315306,0.00028571,2]
[359306837,1745903432691,-152.44,0.00029224,2]
[359306839,1745903432700,-1909.34460702,0.00029245,8]
[359306841,1745903432710,-1000.0,0.00029379,2]
[359306843,1745903432720,-977.34,0.00029836,2]
[359306845,1745903432730,-231.28369723,0.0002994,2]
[359306847,1745903432739,-1909.34460702,0.00029969,9]
[359306849,1745903432749,-413.0,0.0003,14]
[359306851,1745903432759,-152.44,0.00030137,2]
[359306853,1745903432768,-247.83118929,0.00030137,2]
[359306855,1745903432778,-217.44587564,0.000303,2]
[359306857,1745903432787,-413.0,0.00030411,14]
[359306859,1745903432797,-175.08,0.00030518,2]
[359306861,1745903432806,-413.0,0.00030685,14]
[359306863,1745903432815,-1909.34460702,0.00030693,9]
[359306865,1745903432825,-413.0,0.00030959,14]
[359306867,1745903432834,-1000.0,0.00030979,5]
[359306869,1745903432845,-152.44,0.0003105,2]
[359306871,1745903432854,-413.0,0.00031233,14]
[359306873,1745903432863,-807.43,0.00031293,2]
[359306875,1745903432873,-239.84119403,0.00031309,2]
[359306877,1745903432882,-1909.34460702,0.00031417,9]
[359306879,1745903432892,-200.0,0.00031503,2]
[359306881,1745903432904,-784.74,0.00031523,2]
[359306883,1745903432914,-1000.0,0.0003162,2]
[359306885,1745903432924,-413.0,0.00031644,14]
[359306887,1745903432933,-152.44,0.00031963,2]
[359306889,1745903432944,-977.34,0.000321,2]
[359306891,1745903432954,-1909.34460702,0.00032141,10]
[359306894,1745903432964,-248.71531821,0.00032678,2]
[359306896,1745903432973,-1909.34460702,0.00032866,10]
[359306897,1745903432983,-150.67,0.00032874,2]
[359306899,1745903432993,-152.44,0.00032877,2]
[359306901,1745903433003,-175.71,0.00033366,2]
[359306903,1745903433013,-250.0,0.00033439,2]
[359306905,1745903433023,-368.0,0.000335,5]
[359306907,1745903433032,-1909.34460702,0.0003359,11]
[359306910,1745903433042,-152.44,0.0003379,2]
[359306912,1745903433052,-257.91778498,0.00034047,2]
[359306914,1745903433062,-150.67,0.00034243,2]
[359306916,1745903433073,-1909.34460702,0.00034314,11]
[359306918,1745903433083,-977.34,0.00034364,2]
[359306920,1745903433095,-152.0,0.00034443,3]
[359306922,1745903433105,-500.0,0.00034521,2]
[359306924,1745903433115,-171.63,0.00034676,2]
[359306926,1745903433125,-152.44,0.00034703,2]
[359306928,1745903433137,-1338.0,0.00034807,2]
[359306930,1745903433147,-1909.34460702,0.00035038,12]
[359306932,1745903433158,-152.0,0.00035364,4]
[359306935,1745903433168,-267.46074303,0.00035416,2]
[359306936,1745903433179,-365.76260807,0.00035507,14]
[359306938,1745903433189,-1000.0,0.00035573,2]
[359306941,1745903433199,-152.44,0.00035616,2]
[359306942,1745903433209,-972.96141725,0.00035616,7]
[359306944,1745903433219,-972.96141725,0.00035616,7]
[359306946,1745903433229,-972.96141725,0.00035616,7]
[359306949,1745903433239,-972.96141725,0.00035616,7]
[359306951,1745903433249,-972.96141725,0.00035616,7]
[359306953,1745903433258,-972.96141725,0.00035616,7]
[359306955,1745903433268,-972.96141725,0.00035616,7]
[359306957,1745903433278,-972.96141725,0.00035616,7]
[359306959,1745903433287,-972.96141725,0.00035616,7]
[359306961,1745903433297,-972.96141725,0.00035616,7]
[359306963,1745903433307,-972.96141725,0.00035616,7]
[359306965,1745903433316,-481.23597373,0.00035616,7]
[359306967,1745903433331,-491.72544352,0.00035616,7]
[359306969,1745903433341,-910.11565448,0.00035616,7]
[359306978,1745903433418,723.23,0.00038356,30]
[359306980,1745903433432,-62.84576277,0.00035616,7]
[359306982,1745903433443,-972.96141725,0.00035616,7]
[359306984,1745903433453,-1315.13554844,0.00035616,7]
[359306986,1745903433462,-1315.13554844,0.00035616,7]
[359306989,1745903433481,-1315.13554844,0.00035616,7]
[359306991,1745903433492,-1315.13554844,0.00035616,7]
[359306993,1745903433502,-1315.13554844,0.00035616,7]
[359306995,1745903433512,-1315.13554844,0.00035616,7]
[359306997,1745903433523,-1315.13554844,0.00035616,7]
[359306999,1745903433534,-1315.13554844,0.00035616,7]
[359307001,1745903433543,-1578.16265811,0.00035616,7]
[359307003,1745903433553,-444.89634452,0.00035616,7]
[359307169,1745903435398,470.0,0.00038356,30]
[359307170,1745903437924,544.21,0.00038356,30]
[359307179,1745903438533,-1133.26631359,0.00035616,7]
[359307181,1745903438543,-501.0099906,0.000357,5]
[359307182,1745903438553,-503.22722763,0.000357,5]
[359307184,1745903438562,-516.85934625,0.000357,5]
[359307186,1745903438571,-226.79917763,0.00035762,12]
[359307228,1745903439062,470.0,0.00038356,30]
[359307237,1745903440479,-1682.54542939,0.00035762,12]
[359307238,1745903440491,-305.187385,0.000358,12]
[359307239,1745903440501,-1000.0,0.00035818,2]
[359307240,1745903440511,-150.0,0.0003589,2]
[359307241,1745903440523,-150.0,0.0003589,2]
[359307242,1745903440535,-150.0,0.0003589,2]
[359307243,1745903440544,-569.81795047,0.0003589,2]
[359307244,1745903440557,-503.44874101,0.0003589,2]
[359307245,1745903440567,-977.65687831,0.0003589,2]
[359307246,1745903440578,-150.0,0.0003589,2]
[359307247,1745903440590,-150.0,0.0003589,2]
[359307248,1745903440599,-853.86164716,0.0003589,2]
[359307249,1745903440609,-1138.32867845,0.0003589,2]
[359307250,1745903440618,-500.0,0.00036,5]
[359307251,1745903440627,-152.0,0.00036285,5]
[359307252,1745903440637,-1909.34460702,0.00036486,13]
[359307253,1745903440647,-152.44,0.0003653,2]
[359307254,1745903440656,-977.34,0.00036628,2]
[359307255,1745903440665,-277.35679052,0.00036785,2]
[359307256,1745903440674,-152.0,0.00037207,6]
[359307257,1745903440684,-1909.34460702,0.0003721,13]
[359307258,1745903440693,-152.44,0.00037443,2]
[359307259,1745903440703,-244.9146374,0.00037479,4]
[359307260,1745903440713,-1143.39921488,0.00037482,5]
[359307261,1745903440723,-4800.80173853,0.00037489,2]
[359307262,1745903440732,-497.01013691,0.00037588,15]
[359307263,1745903440742,-1126.11275144,0.00037588,15]
[359307264,1745903440752,-1126.11275144,0.00037588,15]
[359307265,1745903440761,-1051.12576986,0.00037589,5]
[359307266,1745903440771,-1148.91293565,0.00037589,5]
[359307267,1745903440780,-1094.99049844,0.00037589,5]
[359307268,1745903440788,-1082.18686299,0.00037589,5]
[359307269,1745903440797,-1043.65454783,0.00037589,5]
[359307270,1745903440807,-1131.35692569,0.00037589,5]
[359307271,1745903440815,-1138.78035437,0.00037589,5]
[359307272,1745903440823,-1004.68359428,0.00037589,5]
[359307273,1745903440832,-1046.90655523,0.00037589,5]
[359307274,1745903440840,-1009.22597167,0.00037589,5]
[359307275,1745903440849,-1045.93314006,0.00037589,5]
[359307276,1745903440858,-1046.05207553,0.00037589,5]
[359307277,1745903440866,-1106.52279165,0.00037589,5]
[359307278,1745903440875,-1002.2129543,0.00037589,5]
[359307279,1745903440884,-1132.33402634,0.00037589,5]
[359307280,1745903440892,-1146.07188442,0.00037589,5]
[359307281,1745903440899,-1113.62841457,0.00037589,5]
[359307282,1745903440906,-1038.45840563,0.00037589,5]
[359307283,1745903440913,-1096.35789309,0.00037589,5]
[359307284,1745903440921,-1112.42516465,0.00037589,5]
[359307285,1745903440930,-1042.49323412,0.00037589,5]
[359307286,1745903440939,-1000.38115026,0.00037589,5]
[359307287,1745903440949,-1078.02725137,0.00037589,5]
[359307288,1745903440958,-1382.21164832,0.00037589,5]
[359307289,1745903440968,-1745.77,0.000376,2]
[359307290,1745903440977,-2247.46,0.000376,2]
[359307291,1745903440987,-1745.77,0.000377,2]
[359307292,1745903440996,-2247.46,0.000377,2]
[359307293,1745903441005,-4800.80173853,0.00037787,2]
[359307294,1745903441015,-1000.0,0.000379,2]
[359307295,1745903441024,-1909.34460702,0.00037934,14]
[359307296,1745903441034,-2074.88688531,0.00037985,2]
[359307297,1745903441043,-32482.4902022,0.0003799,3]
[359307298,1745903441053,-1037.09,0.00038,2]
[359307299,1745903441062,-20000.0,0.00038,3]
[359307300,1745903441072,-60199.63266268,0.00038,10]
[359307301,1745903441081,-4800.80173853,0.00038085,2]
[359307302,1745903441091,-373.00134975,0.000381,2]
[359307303,1745903441100,-1007.0,0.000381,2]
[359307305,1745903441111,-152.0,0.00038128,7]
[359307307,1745903441120,-287.61899177,0.00038154,2]
[359307308,1745903441129,-261.0383941,0.00038164,12]
[359307311,1745903441139,-220.0,0.00038164,4]
[359307313,1745903441149,-1037.09,0.000382,2]
[359307314,1745903441158,-2074.88688529,0.00038216,2]
[359307315,1745903441167,-200.0,0.00038247,2]
[359307316,1745903441176,-200.0,0.00038247,2]
[359307317,1745903441186,-200.0,0.00038247,2]
[359307318,1745903441196,-200.0,0.00038247,2]
[359307319,1745903441205,-200.0,0.00038247,2]
[359307320,1745903441215,-200.0,0.00038247,2]
[359307321,1745903441224,-200.0,0.00038247,2]
[359307322,1745903441233,-200.0,0.00038247,2]
[359307323,1745903441242,-200.0,0.00038247,2]
[359307324,1745903441252,-200.0,0.00038247,2]
[359307325,1745903441261,-200.0,0.00038247,2]
[359307326,1745903441270,-200.0,0.00038247,2]
[359307327,1745903441278,-200.0,0.00038247,2]
[359307328,1745903441286,-200.0,0.00038247,2]
[359307329,1745903441294,-200.0,0.00038247,2]
[359307330,1745903441302,-200.0,0.00038247,2]
[359307331,1745903441311,-200.0,0.00038247,2]
[359307332,1745903441320,-200.0,0.00038247,2]
[359307333,1745903441329,-200.0,0.00038247,2]
[359307334,1745903441338,-200.0,0.00038247,2]
[359307335,1745903441348,-200.0,0.00038247,2]
[359307336,1745903441357,-200.0,0.00038247,2]
[359307337,1745903441367,-200.0,0.00038247,2]
[359307338,1745903441376,-200.0,0.00038247,2]
[359307339,1745903441385,-200.0,0.00038247,2]
[359307340,1745903441395,-200.0,0.00038247,2]
[359307341,1745903441404,-200.0,0.00038247,2]
[359307342,1745903441413,-200.0,0.00038247,2]
[359307343,1745903441422,-200.0,0.00038247,2]
[359307344,1745903441431,-200.0,0.00038247,2]
[359307345,1745903441444,-200.0,0.00038247,2]
[359307346,1745903441454,-200.0,0.00038247,2]
[359307347,1745903441463,-200.0,0.00038247,2]
[359307348,1745903441471,-200.0,0.00038247,2]
[359307349,1745903441481,-324.0,0.00038247,2]
[359307350,1745903441490,-150.0,0.00038266,2]
[359307351,1745903441499,-150.0,0.00038283,2]
[359307352,1745903441508,-150.0,0.00038305,2]
[359307353,1745903441518,-150.0,0.00038313,2]
[359307354,1745903441527,-150.0,0.00038326,2]
[359307355,1745903441536,-150.0,0.00038338,2]
[359307356,1745903441545,-32482.4902022,0.00038346,3]
[359307357,1745903441555,-150.0,0.00038347,2]
[359307358,1745903441564,-150.0,0.00038348,2]
[359307359,1745903441573,-150.0,0.00038349,2]
[359307360,1745903441583,-150.0,0.00038351,2]
[359307361,1745903441591,-200.0,0.00038356,2]
[359307362,1745903441600,-553.11,0.00038356,2]
[359307363,1745903441612,-470.0,0.00038356,7]
[359307364,1745903441622,-358.0,0.00038356,18]
[359307365,1745903441631,-470.0,0.00038356,14]
[359307366,1745903441640,-470.0,0.00038356,2]
[359307367,1745903441650,-470.0,0.00038356,8]
[359307368,1745903441659,-500.0,0.00038356,11]
[359307369,1745903441668,-6105.51,0.00038356,2]
[359307370,1745903441677,-408.87562221,0.00038356,2]
[359307371,1745903441687,-470.0,0.00038356,2]
[359307372,1745903441696,-470.0,0.00038356,2]
[359307373,1745903441705,-470.0,0.00038356,2]
[359307374,1745903441714,-470.0,0.00038356,2]
[359307375,1745903441723,-160.0,0.00038356,2]
[359307376,1745903441732,-152.44,0.00038356,2]
[359307377,1745903441741,-297.05799691,0.00038356,2]
[359307378,1745903441751,-150.0,0.00038356,5]
[359307379,1745903441760,-150.0,0.00038359,2]
[359307380,1745903441769,-150.0,0.00038366,2]
[359307381,1745903441778,-150.0,0.00038375,2]
[359307382,1745903441787,-150.0,0.00038379,2]
[359307383,1745903441796,-150.0,0.0003838,2]
[359307384,1745903441805,-150.0,0.00038382,2]
[359307385,1745903441815,-500.0,0.00038383,11]
[359307386,1745903441824,-500.0,0.00038383,30]
[359307387,1745903441834,-255.62822328,0.00038383,30]
[359307388,1745903441843,-150.0,0.00038383,30]
[359307389,1745903441853,-150.0,0.00038383,30]
[359307390,1745903441864,-517.0,0.00038383,30]
[359307391,1745903441872,-150.0,0.00038383,30]
[359307392,1745903441881,-150.0,0.00038383,30]
[359307393,1745903441889,-255.42358867,0.00038383,30]
[359307394,1745903441898,-4800.80173853,0.00038384,2]
[359307395,1745903441908,-150.0,0.00038393,2]
[359307396,1745903441917,-150.0,0.00038395,2]
[359307397,1745903441927,-150.0,0.00038397,2]
[359307398,1745903441936,-2000.0,0.000384,2]
[359307399,1745903441945,-1241.91,0.000384,2]
[359307400,1745903441954,-1000.0,0.000384,2]
[359307401,1745903441964,-150.0,0.00038408,2]
[359307402,1745903441974,-241.36451384,0.00038411,11]
[359307403,1745903441983,-500.0,0.00038411,30]